fUST/lending_fUST_20240324
["ID","MTS","AMOUNT","RATE_DAILY","PERIOD"]
[320297241,1711266332305,-26586.5403193,0.00020352,2]
[320297242,1711266332324,-166.666666,0.00020957,2]
[320297243,1711266332346,-1081.65801106,0.00021898,2]
[320297244,1711266332366,-2518.43473881,0.00021996,2]
[320297245,1711266332385,-241.82419437,0.00021996,2]
[320297246,1711266332406,-1169.23530444,0.00021996,2]
[320297247,1711266332426,-156.80145919,0.00021997,2]
[320297248,1711266332445,-271.56963269,0.00021997,2]
[320297249,1711266332465,-1930.43809986,0.00021997,2]
[320297250,1711266332484,-40865.41880606,0.00021998,2]
[320297251,1711266433119,-194.41095705,0.00021996,2]
[320297252,1711266433142,-677.55810615,0.00021997,2]
[320297253,1711266433164,-278.61530503,0.00021997,2]
[320297254,1711266433186,-268.1549252,0.00021997,2]
[320297255,1711266433208,-8069.51057055,0.00021998,2]
[320297256,1711266436245,-38648.65356958,0.00021998,2]
[320297257,1711266436268,-865.32640884,0.00022412,2]
[320297258,1711266436289,-2000.0,0.00022512,2]
[320297259,1711266436310,-865.32640883,0.00022545,2]
[320297260,1711266436330,-865.32640883,0.00022679,2]
[320297261,1711266436354,-865.32640883,0.00022812,2]
[320297262,1711266436374,-2000.0,0.000229,2]
[320297263,1711266436396,-865.32640883,0.00022945,2]
[320297264,1711266436416,-212.61035174,0.00022998,2]
[320297265,1711266436438,-284.76674436,0.00022998,2]
[320297266,1711266436458,-262.99728441,0.00022998,7]
[320297267,1711266436478,-162.69966432,0.00022998,2]
[320297268,1711266436497,-351.61806913,0.00022998,2]
[320297269,1711266436519,-437.57885598,0.00022999,2]
[320297270,1711266436538,-423.26704869,0.00022999,2]
[320297271,1711266436557,-500.0,0.00022999,2]
[320297272,1711266436577,-500.0,0.00022999,2]
[320297273,1711266436597,-199.05637103,0.00022999,2]
[320297274,1711266436616,-452.92526809,0.00022999,2]
[320297275,1711266436636,-359.45987864,0.00022999,2]
[320297276,1711266436656,-500.0,0.00022999,2]
[320297277,1711266436678,-500.0,0.00022999,2]
[320297278,1711266436698,-103.70308766,0.00022999,2]
[320297279,1711266559112,-220.92087518,0.000229,2]
[320297316,1711266632454,-1779.07912482,0.000229,2]
[320297317,1711266632465,-333.13149492,0.00022999,2]
[320297318,1711266632475,-2712.53667069,0.00023,2]
[320297319,1711266632487,-2244.86110545,0.00023,2]
[320297320,1711266632498,-5994.4225592,0.00023,2]
[320297321,1711266632514,-8992.05726871,0.00023,2]
[320297322,1711266632526,-1410.0000015,0.00023,2]
[320297323,1711266632537,-94311.7215527,0.00023,2]
[320297331,1711266637932,-1811.58916521,0.00023,2]
[320297338,1711266637988,-121155.37345758,0.00023,2]
[320297368,1711266638384,-9073.79771513,0.00023,2]
[320297369,1711266638398,-583389.31901804,0.00023,2]
[320297373,1711266639991,-3182.58600186,0.00023,2]
[320297374,1711266640003,-487.14,0.00023,2]
[320297375,1711266640015,-504.63526,0.00023,2]
[320297376,1711266640026,-700.0,0.00023,2]
[320297377,1711266640038,-546.08340015,0.00023,2]
[320297378,1711266640050,-86852.43631034,0.00023,2]
[320297379,1711266640061,-191358.00000015,0.00023,2]
[320297397,1711266642960,-892.9999998,0.00023,2]
[320297399,1711266642973,-744.5,0.00023,2]
[320297400,1711266643120,-888.21218,0.00023,2]
[320297402,1711266643133,-1962.4810933,0.00023,2]
[320297404,1711266643146,-1911.0,0.00023,2]
[320297407,1711266643158,-345.0,0.00023,2]
[320297444,1711267752119,-166.666666,0.000229,2]
[320297445,1711267774085,-400.10558148,0.000229,2]
[320297506,1711267832234,-1433.22775252,0.000229,2]
[320297508,1711267832244,-763.00419438,0.00022999,2]
[320297562,1711267838128,-344.17734849,0.000229,2]
[320297563,1711267838186,-1655.82265151,0.000229,2]
[320297564,1711267838196,-631.78947312,0.00022999,2]
[320297565,1711267838206,-126397.34350775,0.00023,2]
[320297566,1711267838220,-583389.31901804,0.00023,2]
[320297605,1711267843304,-149505.9473993,0.00023,2]
[320297606,1711267843313,-391.29560276,0.00023192,2]
[320297607,1711267843323,-2713.15526883,0.00023292,2]
[320297608,1711267843332,-306.0,0.000239,2]
[320297609,1711267843342,-3003.12370481,0.00024,2]
[320297610,1711267843351,-150.07095647,0.00024085,2]
[320297611,1711267843360,-201.8484782,0.000241,2]
[320297613,1711267843370,-151.31585847,0.00024173,2]
[320297615,1711267843379,-161.424866,0.00024428,2]
[320297617,1711267843389,-154.1961117,0.00024603,2]
[320297618,1711267843399,-153.0,0.00024603,2]
[320297619,1711267843408,-153.0,0.00024603,2]
[320297620,1711267843417,-153.0,0.00024603,2]
[320297621,1711267843427,-153.0,0.00024603,2]
[320297622,1711267843437,-179.11923125,0.00024657,2]
[320297623,1711267843447,-500.0,0.00024657,2]
[320297624,1711267843457,-502.13271576,0.00024657,2]
[320297625,1711267843467,-303.95215346,0.00024657,2]
[320297626,1711267843476,-286.62399524,0.00024657,2]
[320297627,1711267843485,-500.0,0.00024657,2]
[320297628,1711267843494,-222.86501949,0.00024657,2]
[320297629,1711267843503,-500.0,0.00024657,2]
[320297630,1711267843512,-500.0,0.00024657,2]
[320297631,1711267843522,-500.0,0.00024657,2]
[320297632,1711267843534,-500.0,0.00024657,2]
[320297633,1711267843544,-500.0,0.00024657,2]
[320297634,1711267843553,-500.0,0.00024657,2]
[320297635,1711267843562,-556.37,0.00024657,2]
[320297636,1711267843572,-500.0,0.00024657,2]
[320297637,1711267843581,-500.0,0.00024657,2]
[320297638,1711267843590,-500.0,0.00024657,2]
[320297639,1711267843599,-500.0,0.00024657,2]
[320297640,1711267843609,-500.0,0.00024657,2]
[320297641,1711267843620,-500.0,0.00024657,2]
[320297642,1711267843629,-600.65,0.00024657,2]
[320297643,1711267843639,-500.0,0.00024657,2]
[320297644,1711267843648,-500.0,0.00024657,2]
[320297645,1711267843658,-500.0,0.00024657,2]
[320297646,1711267843667,-501.39167972,0.00024657,2]
[320297647,1711267843676,-501.42475041,0.00024657,2]
[320297648,1711267843685,-623.47597017,0.00024657,2]
[320297649,1711267843695,-504.46764589,0.00024657,2]
[320297650,1711267843703,-502.66097214,0.00024657,2]
[320297651,1711267843713,-436.71406335,0.00024657,2]
[320297652,1711267843722,-198.72538609,0.00024657,2]
[320297653,1711267843731,-500.0,0.00024657,2]
[320297654,1711267843740,-698.14,0.00024657,2]
[320297655,1711267843749,-1141.35,0.00024657,2]
[320297656,1711267843758,-6029.68,0.00024657,2]
[320297657,1711267843767,-500.0,0.00024657,2]
[320297658,1711267843776,-543.46,0.00024657,2]
[320297659,1711267843786,-500.0,0.00024657,2]
[320297660,1711267843795,-500.0,0.00024657,2]
[320297661,1711267843804,-1162.32,0.00024657,2]
[320297662,1711267843813,-500.0,0.00024657,2]
[320297663,1711267843823,-500.0,0.00024657,2]
[320297664,1711267843832,-500.0,0.00024657,2]
[320297665,1711267843842,-501.3,0.00024657,2]
[320297666,1711267843851,-591.24,0.00024657,2]
[320297667,1711267843860,-9065.04,0.00024657,2]
[320297668,1711267843869,-500.0,0.00024657,2]
[320297669,1711267843878,-500.0,0.00024657,2]
[320297670,1711267843887,-1436.34,0.00024657,2]
[320297671,1711267843896,-500.0,0.00024657,2]
[320297672,1711267843905,-692.22,0.00024657,2]
[320297673,1711267843915,-500.0,0.00024657,2]
[320297674,1711267843924,-2573.22,0.00024657,2]
[320297675,1711267843933,-500.0,0.00024657,2]
[320297676,1711267843943,-500.0,0.00024657,2]
[320297677,1711267843952,-500.0,0.00024657,2]
[320297678,1711267843961,-701.63,0.00024657,2]
[320297679,1711267843970,-511.77,0.00024657,2]
[320297680,1711267843979,-1450.12,0.00024657,2]
[320297681,1711267843988,-587.03154101,0.00024657,2]
[320297682,1711267843997,-500.0,0.00024657,2]
[320297683,1711267844007,-500.0,0.00024657,2]
[320297684,1711267844016,-5427.9,0.00024657,2]
[320297685,1711267844025,-1666.66,0.00024657,2]
[320297686,1711267844034,-522.05601827,0.00024657,2]
[320297687,1711267844043,-500.0,0.00024657,2]
[320297688,1711267844053,-500.84535856,0.00024657,2]
[320297689,1711267844062,-7506.26,0.00024657,2]
[320297690,1711267844072,-166.666666,0.00024658,2]
[320297691,1711267844081,-10161.06012706,0.000248,7]
[320297692,1711267844090,-400.0,0.000248,2]
[320297693,1711267844099,-161.424866,0.00024835,2]
[320297694,1711267844108,-43676.60877806,0.00024916,2]
[320297695,1711267844118,-9834.89162083,0.00024916,2]
[320297715,1711267846255,-77058.96758152,0.00024916,2]
[320297717,1711267846265,-164080.90742319,0.00024916,2]
[320297719,1711267846274,-151.31585847,0.00024923,2]
[320297721,1711267846283,-433.60629522,0.00024931,2]
[320297723,1711267846292,-513.36496613,0.00024931,2]
[320297725,1711267846301,-500.0,0.00024931,2]
[320297727,1711267846310,-500.0,0.00024931,2]
[320297729,1711267846319,-500.0,0.00024931,2]
[320297731,1711267846328,-500.0,0.00024931,2]
[320297733,1711267846337,-556.37,0.00024931,2]
[320297735,1711267846345,-500.0,0.00024931,2]
[320297737,1711267846354,-500.0,0.00024931,2]
[320297739,1711267846363,-500.0,0.00024931,2]
[320297741,1711267846372,-500.0,0.00024931,2]
[320297742,1711267846381,-642.51958234,0.00024931,2]
[320297745,1711267846390,-500.0,0.00024931,2]
[320297746,1711267846400,-600.65,0.00024931,2]
[320297748,1711267846408,-500.0,0.00024931,2]
[320297750,1711267846418,-500.0,0.00024931,2]
[320297752,1711267846427,-500.0,0.00024931,2]
[320297754,1711267846436,-698.14,0.00024931,2]
[320297756,1711267846445,-1141.35,0.00024931,2]
[320297758,1711267846454,-6029.68,0.00024931,2]
[320297760,1711267846463,-500.0,0.00024931,2]
[320297763,1711267846472,-500.0,0.00024931,2]
[320297765,1711267846481,-500.0,0.00024931,2]
[320297766,1711267846490,-1162.32,0.00024931,2]
[320297768,1711267846499,-500.0,0.00024931,2]
[320297770,1711267846508,-500.0,0.00024931,2]
[320297772,1711267846518,-501.3,0.00024931,2]
[320297774,1711267846527,-591.24,0.00024931,2]
[320297776,1711267846540,-9065.04,0.00024931,2]
[320297778,1711267846549,-500.0,0.00024931,2]
[320297780,1711267846558,-500.0,0.00024931,2]
[320297781,1711267846567,-1436.34,0.00024931,2]
[320297783,1711267846576,-500.0,0.00024931,2]
[320297784,1711267846587,-692.22,0.00024931,2]
[320297785,1711267846596,-500.0,0.00024931,2]
[320297786,1711267846605,-2573.22,0.00024931,2]
[320297787,1711267846614,-500.0,0.00024931,2]
[320297788,1711267846623,-500.0,0.00024931,2]
[320297789,1711267846633,-701.63,0.00024931,2]
[320297790,1711267846642,-511.77,0.00024931,2]
[320297791,1711267846651,-1450.12,0.00024931,2]
[320297792,1711267846661,-500.0,0.00024931,2]
[320297793,1711267846670,-500.0,0.00024931,2]
[320297794,1711267846680,-1234.79743803,0.00024931,2]
[320297862,1711268966152,-150.0,0.00022816,2]
[320297863,1711268966173,-297.48358355,0.000229,2]
[320297875,1711269032389,-150.0,0.000208,2]
[320297876,1711269032398,-300.0,0.00022899,2]
[320297877,1711269032407,-1702.51641645,0.000229,2]
[320297878,1711269032417,-156.47973414,0.000229,2]
[320297879,1711269032425,-2170.52421512,0.000229,2]
[320297880,1711269032435,-404.30719077,0.00023,2]
[320297881,1711269032453,-1656.565,0.00023,2]
[320297918,1711269038406,-48138.97698422,0.00023,2]
[320297923,1711269038463,-8966.9286095,0.00023,2]
[320297924,1711269038475,-583389.31901804,0.00023,2]
[320297925,1711269038522,-7018.41584099,0.00023,2]
[320297932,1711269040485,-503.01188397,0.00023,2]
[320297972,1711269043414,-1681.85022354,0.00023,2]
[320297973,1711269043426,-798.7435086,0.00023,2]
[320297974,1711269043437,-409.910339,0.00023,2]
[320297990,1711269651017,176.0,0.00024297,120]
[320297995,1711270041177,-220.92087518,0.00022868,2]
[320298007,1711270174238,-170.54135639,0.00022517,2]
[320298008,1711270174385,-154.93802479,0.00022518,2]
[320298009,1711270174406,-535.20251099,0.0002252,2]
[320298010,1711270174426,-166.666666,0.00022522,2]
[320298011,1711270174446,-13071.21683608,0.000229,2]
[320298047,1711270232433,-157.69465882,0.00022899,2]
[320298049,1711270232442,-21497.13827045,0.000229,2]
[320298051,1711270232452,-2000.0,0.000229,2]
[320298053,1711270232461,-1953.47179359,0.000229,2]
[320298055,1711270232471,-170.54135639,0.00022998,2]
[320298057,1711270232480,-251.6989718,0.00022998,2]
[320298059,1711270232490,-1000.0,0.00022999,6]
[320298062,1711270232500,-458.95182705,0.00022999,2]
[320298065,1711270232509,-1263.92188786,0.00022999,2]
[320298068,1711270232521,-3507.58973096,0.00022999,2]
[320298171,1711270238462,-9004.1922815,0.00022999,2]
[320298172,1711270238517,-1297.16187617,0.00022999,2]
[320298173,1711270238531,-9228.0794098,0.00022999,2]
[320298174,1711270238540,-362.13316636,0.00022999,2]
[320298175,1711270238549,-302.73294112,0.00022999,2]
[320298176,1711270238559,-250.52278599,0.00022999,2]
[320298177,1711270238568,-309.79863476,0.00022999,2]
[320298178,1711270238577,-210.85389957,0.00022999,2]
[320298179,1711270238587,-572725.19818044,0.00023,2]
[320298211,1711270246598,-304.21645249,0.00022999,2]
[320298212,1711270246608,-153.49821275,0.00023,2]
[320298226,1711270460516,2318.1082448,0.000125,2]
[320298227,1711270460549,1.35050135,0.000125,2]
[320298263,1711271433985,-2000.0,0.000229,2]
[320298265,1711271433995,-210.85389957,0.00022998,2]
[320298267,1711271434004,-309.79863476,0.00022998,2]
[320298269,1711271434014,-155.41979223,0.00022998,2]
[320298271,1711271434024,-302.73294112,0.00022999,2]
[320298273,1711271434033,-250.52278599,0.00022999,2]
[320298275,1711271434042,-362.13316636,0.00022999,2]
[320298277,1711271434052,-117714.76112277,0.00023,2]
[320298358,1711271438502,310.01005302,0.00022,2]
[320298360,1711271438632,-578.59423099,0.00022,2]
[320298361,1711271438642,-309267.24388541,0.00023,2]
[320298362,1711271438653,-264315.40149184,0.00023,2]
[320298386,1711271440907,-592.87397604,0.00023,2]
[320298387,1711271440919,-1237.16687407,0.00023,2]
[320298388,1711271440931,-89241.55313389,0.00023,2]
[320298413,1711271446843,-965.23267121,0.000229,2]
[320298414,1711271446854,-1903.18622679,0.00023,2]
[320298415,1711271446867,-3509.545865,0.00023,2]
[320298418,1711271974403,166.666667,0.00019467,2]
[320298421,1711272083698,167.0847234,0.00019178,2]
[320298422,1711272211385,2164.89810825,0.00018913,2]
[320298423,1711272211425,1122.46660745,0.00018913,2]
[320298424,1711272261011,1377.53339255,0.00018905,2]
[320298425,1711272261045,19000.0,0.00018905,2]
[320298426,1711272261085,6209.00692675,0.00018905,2]
[320298427,1711272298726,166.217228,0.00018873,2]
[320298491,1711272377098,150.0,0.000189,2]
[320298507,1711272492699,166.666666,0.00019395,2]
[320298626,1711272637908,-154.98450155,0.0001979,2]
[320298627,1711272637918,-488.23939863,0.00019791,2]
[320298628,1711272637931,-559.89028424,0.00019791,2]
[320298629,1711272637941,-263.4120106,0.00019792,7]
[320298630,1711272637950,-816.34141016,0.00019792,2]
[320298631,1711272637959,-470.93164976,0.00019793,2]
[320298632,1711272637970,-784.63828798,0.00019794,2]
[320298633,1711272637979,-405.62955081,0.00019795,2]
[320298634,1711272637989,-1956.4009711,0.00019796,2]
[320298635,1711272637998,-1197.48593162,0.00019831,2]
[320298636,1711272638009,-1169.23530444,0.0001993,2]
[320298638,1711272638018,-47777.70713957,0.0001993,2]
[320298639,1711272638028,-1197.48593158,0.00020598,2]
[320298641,1711272638039,-546.2830717,0.00020888,2]
[320298643,1711272638048,-853.45740071,0.00020898,2]
[320298644,1711272638057,-1197.48593158,0.00021365,2]
[320298645,1711272638069,-920.61999482,0.00021749,2]
[320298646,1711272638078,-1197.48593158,0.00022132,2]
[320298647,1711272638088,-172.5526026,0.00022769,2]
[320298649,1711272638096,-5700.78356925,0.00022895,2]
[320298651,1711272638106,-212.61035174,0.00022897,2]
[320298654,1711272638115,-284.76674436,0.00022897,2]
[320298655,1711272638124,-240.73329976,0.00022897,2]
[320298657,1711272638134,-683.01903646,0.00022897,2]
[320298659,1711272638143,-437.57885598,0.00022897,2]
[320298661,1711272638152,-155.03096902,0.00022898,2]
[320298663,1711272638161,-309.90162273,0.00022898,2]
[320298665,1711272638171,-1197.48593158,0.00022899,2]
[320298667,1711272638181,-27626.03049165,0.000229,2]
[320298669,1711272638190,-271.56963269,0.00022996,2]
[320298671,1711272638199,-155.75645605,0.00022997,2]
[320298673,1711272638209,-359.45987864,0.00022997,2]
[320298675,1711272638218,-500.0,0.00022997,2]
[320298677,1711272638227,-423.26704869,0.00022997,2]
[320298679,1711272638236,-500.0,0.00022997,2]
[320298681,1711272638245,-433.00616885,0.00022997,2]
[320298683,1711272638254,-500.0,0.00022997,2]
[320298685,1711272638264,-500.0,0.00022997,2]
[320298687,1711272638273,-178.93248768,0.00022997,2]
[320298689,1711272638283,-500.0,0.00022997,2]
[320298691,1711272638292,-500.0,0.00022997,2]
[320298693,1711272638300,-500.0,0.00022997,2]
[320298695,1711272638309,-603.70308766,0.00022997,2]
[320298697,1711272638318,-241.82419437,0.00022998,2]
[320298699,1711272638327,-212.39947937,0.00022998,2]
[320298701,1711272638336,-400.0,0.00022998,2]
[320298703,1711272638345,-323.54056831,0.00022998,2]
[320298705,1711272638354,-156.80145919,0.00022998,2]
[320298707,1711272638363,-156.15567809,0.00022998,2]
[320298709,1711272638372,-433.67148363,0.00022998,2]
[320298711,1711272638381,-296.42009408,0.00022998,2]
[320298713,1711272638390,-155.56649131,0.00022998,2]
[320298715,1711272638399,-215.63811279,0.00022998,2]
[320298717,1711272638408,-155.77922761,0.00022998,2]
[320298719,1711272638417,-157.10116414,0.00022998,2]
[320298721,1711272638426,-1483.86335641,0.00022998,2]
[320298723,1711272638435,-155.28737634,0.00022998,2]
[320298725,1711272638444,-188.23133374,0.00022998,2]
[320298727,1711272638454,-155.36307278,0.00022998,2]
[320298729,1711272638464,-95700.81250907,0.00022998,2]
[320298731,1711272638473,-155.20684641,0.00022999,2]
[320298733,1711272638483,-5563.03856759,0.00022999,2]
[320298735,1711272638492,-180.94663868,0.00022999,2]
[320298737,1711272638500,-1580.3448193,0.00022999,2]
[320298739,1711272638510,-2518.43473881,0.00022999,2]
[320298741,1711272638521,-1930.43809986,0.00022999,2]
[320298743,1711272638533,-236.63473284,0.00022999,2]
[320298745,1711272638542,-324.36253623,0.00022999,2]
[320298747,1711272638551,-208.01509305,0.00022999,30]
[320298749,1711272638561,-306.3780589,0.00022999,2]
[320298751,1711272638570,-205.23034575,0.00022999,2]
[320298753,1711272638580,-222589.59243237,0.00023,2]
[320298755,1711272638590,-15846.36627937,0.00023,2]
[320298757,1711272638599,-2000.0,0.00023257,2]
[320298759,1711272638608,-306.0,0.00023278,2]
[320298761,1711272638617,-150.15445292,0.00023764,2]
[320298763,1711272638626,-201.8484782,0.00023778,2]
[320298765,1711272638635,-151.89103618,0.00023781,2]
[320298767,1711272638644,-151.89103618,0.00023885,2]
[320298769,1711272638654,-151.89103618,0.00023951,2]
[320298771,1711272638664,-19153.63371865,0.00024,2]
[320298774,1711272638674,-2029.60180498,0.00024,2]
[320298776,1711272638683,-10000.0,0.00024,2]
[320298778,1711272638693,-2346.69991996,0.00024,2]
[320298779,1711272638702,-151.89103618,0.00024425,2]
[320298781,1711272638711,-500.0,0.00024657,2]
[320298783,1711272638720,-500.0,0.00024657,2]
[320298785,1711272638730,-500.0,0.00024657,2]
[320298788,1711272638739,-500.0,0.00024657,2]
[320298789,1711272638748,-155.3822841,0.00024657,2]
[320298791,1711272638758,-500.0,0.00024657,2]
[320298793,1711272638767,-654.05,0.00024657,2]
[320298795,1711272638777,-500.0,0.00024657,2]
[320298798,1711272638786,-500.0,0.00024657,2]
[320298799,1711272638795,-500.0,0.00024657,2]
[320298801,1711272638805,-500.0,0.00024657,2]
[320298803,1711272638814,-612.78,0.00024657,2]
[320298806,1711272638824,-500.0,0.00024657,2]
[320298808,1711272638835,-647.6,0.00024657,2]
[320298810,1711272638844,-691.62,0.00024657,2]
[320298812,1711272638853,-500.0,0.00024657,2]
[320298814,1711272638862,-567.93,0.00024657,2]
[320298816,1711272638871,-500.0,0.00024657,2]
[320298818,1711272638881,-614.85,0.00024657,2]
[320298820,1711272638890,-500.0,0.00024657,2]
[320298821,1711272638899,-500.0,0.00024657,2]
[320298823,1711272638909,-500.0,0.00024657,2]
[320298826,1711272638919,-6445.35,0.00024657,2]
[320298827,1711272638931,-1681.13,0.00024657,2]
[320298829,1711272638941,-807.88,0.00024657,2]
[320298832,1711272638950,-500.0,0.00024657,2]
[320298834,1711272638961,-564.74,0.00024657,2]
[320298836,1711272638971,-2001.26,0.00024657,2]
[320298838,1711272638980,-500.0,0.00024657,2]
[320298840,1711272638991,-8330.15,0.00024657,2]
[320298842,1711272639000,-650.16,0.00024657,2]
[320298844,1711272639011,-500.0,0.00024657,2]
[320298846,1711272639021,-500.0,0.00024657,2]
[320298848,1711272639030,-1413.82,0.00024657,2]
[320298850,1711272639040,-500.0,0.00024657,2]
[320298852,1711272639049,-500.0,0.00024657,2]
[320298854,1711272639058,-1430.43,0.00024657,2]
[320298856,1711272639067,-500.0,0.00024657,2]
[320298858,1711272639076,-656.54,0.00024657,2]
[320298860,1711272639085,-7556.19,0.00024657,2]
[320298862,1711272639094,-500.0,0.00024657,2]
[320298864,1711272639103,-13934.39,0.00024657,2]
[320298866,1711272639112,-603.48,0.00024657,2]
[320298867,1711272639121,-500.0,0.00024657,2]
[320298869,1711272639131,-500.0,0.00024657,2]
[320298872,1711272639140,-735.13,0.00024657,2]
[320298873,1711272639149,-500.0,0.00024657,2]
[320298875,1711272639159,-500.0,0.00024657,2]
[320298878,1711272639168,-2966.43,0.00024657,2]
[320298880,1711272639177,-1690.86,0.00024657,2]
[320298882,1711272639187,-500.0,0.00024657,2]
[320298884,1711272639197,-500.0,0.00024657,2]
[320298886,1711272639206,-500.0,0.00024657,2]
[320298888,1711272639216,-763.95,0.00024657,2]
[320298890,1711272639225,-776.62,0.00024657,2]
[320298892,1711272639234,-500.0,0.00024657,2]
[320298894,1711272639244,-500.0,0.00024657,2]
[320298895,1711272639253,-500.0,0.00024657,2]
[320298898,1711272639262,-400.47905162,0.00024658,2]
[320298900,1711272639272,-166.666666,0.00024658,2]
[320298901,1711272639280,-812.0,0.000247,2]
[320298903,1711272639290,-7378.41590781,0.000248,7]
[320298905,1711272639299,-1953.47179353,0.00024831,2]
[320298907,1711272639308,-320.62422745,0.00024889,2]
[320298909,1711272639317,-400.0,0.000249,2]
[320298911,1711272639326,-4572.08883989,0.00024926,2]
[320298917,1711272639367,-3459.68170145,0.00024926,2]
[320299043,1711272646004,-474.17740683,0.00024657,2]
[320299044,1711272646225,-3478.33720486,0.00024657,2]
[320299045,1711272729809,500.0,0.00023931,120]
[320299046,1711272730642,500.0,0.00023931,120]
[320299047,1711272731512,500.0,0.00023931,120]
[320299048,1711272732360,316.68538935,0.00023931,120]
[320299049,1711272732389,183.31461065,0.00023931,120]
[320299050,1711272733158,500.0,0.00023931,120]
[320299051,1711272734010,410.36,0.00023931,120]
[320299126,1711273832001,-335.48599556,0.00021815,2]
[320299128,1711273832016,-449.15229242,0.00021815,2]
[320299130,1711273832026,-535.20251099,0.00021816,2]
[320299132,1711273832035,-816.34141016,0.00021817,2]
[320299134,1711273832044,-470.93164976,0.00021818,2]
[320299136,1711273832054,-155.0,0.00021818,2]
[320299138,1711273832063,-150.0,0.00021831,2]
[320299140,1711273832073,-113.38339702,0.00023575,2]
[320299257,1711273838456,-53.28326998,0.00023575,2]
[320299259,1711273838466,-3817.0,0.000237,6]
[320299261,1711273838475,-151.89103618,0.00023888,2]
[320299263,1711273838485,-500.0,0.00023931,7]
[320299265,1711273838494,-500.0,0.00023931,7]
[320299267,1711273838503,-500.0,0.00023931,7]
[320299269,1711273838512,-500.0,0.00023931,7]
[320299270,1711273838521,-500.0,0.00023931,7]
[320299272,1711273838531,-138.42249297,0.00023931,7]
[320299275,1711273838543,-361.57750703,0.00023931,7]
[320299277,1711273838552,-204.3271971,0.00023931,7]
[320299413,1711273840244,-295.6728029,0.00023931,7]
[320299414,1711273840253,-269.55028886,0.00023931,7]
[320299415,1711273840266,-230.44971114,0.00023931,7]
[320299416,1711273840276,-363.84028886,0.00023931,7]
[320299418,1711273840344,-136.15971114,0.00023931,7]
[320299419,1711273840354,-574.68598796,0.00024,2]
[320299421,1711273840366,-226.75428551,0.000245,3]
[320299422,1711273840378,-273.47494685,0.000245,3]
[320299423,1711273840387,-170.54135639,0.00024655,2]
[320299424,1711273840397,-2346.69991996,0.00024656,2]
[320299425,1711273840406,-155.3822841,0.00024657,2]
[320299426,1711273840415,-505.67782288,0.00024657,2]
[320299427,1711273840426,-500.0,0.00024657,2]
[320299428,1711273840436,-500.0,0.00024657,2]
[320299429,1711273840445,-500.0,0.00024657,2]
[320299430,1711273840454,-500.0,0.00024657,2]
[320299431,1711273840464,-505.16691766,0.00024657,2]
[320299432,1711273840473,-242.41093515,0.00024657,2]
[320299433,1711273840482,-73.20806734,0.00024657,2]
[320299509,1711273843128,-500.0,0.00024657,2]
[320299577,1711273846240,-193.28332516,0.00024655,2]
[320299578,1711273846250,-326.15755179,0.00024655,2]
[320299579,1711273846261,-282.44186156,0.00024656,2]
[320299580,1711273846270,-161.27714097,0.00024656,2]
[320299581,1711273846283,-56.42193266,0.00024657,2]
[320299582,1711273846293,-30.76367343,0.00024657,2]
[320299584,1711273846305,-469.23632657,0.00024657,2]
[320299585,1711273846314,-504.94761296,0.00024657,2]
[320299586,1711273846324,-706.56,0.00024657,2]
[320299587,1711273846333,-505.6631745,0.00024657,2]
[320299588,1711273846342,-501.72038043,0.00024657,2]
[320299589,1711273846351,-500.0,0.00024657,2]
[320299590,1711273846360,-500.0,0.00024657,2]
[320299591,1711273846371,-507.16483543,0.00024657,2]
[320299592,1711273846380,-503.25907217,0.00024657,2]
[320299593,1711273846389,-501.53526937,0.00024657,2]
[320299594,1711273846398,-502.77565946,0.00024657,2]